fUST/lending_fUST_20250705
["ID","MTS","AMOUNT","RATE_DAILY","PERIOD"]
[369789047,1751724648187,-460.0,0.0002,2]
[369789049,1751724648197,-460.0,0.0002,2]
[369789051,1751724648208,-6194.09,0.0002,2]
[369789053,1751724648218,-460.0,0.0002,2]
[369789055,1751724648227,-934.3287711,0.0002,2]
[369789067,1751724648330,-1383.8612289,0.0002,2]
[369789069,1751724648340,-460.0,0.0002,2]
[369789071,1751724648352,-33.002659,0.0002,2]
[369789073,1751724648368,-527.107341,0.0002,2]
[369789075,1751724648378,-622.692659,0.0002,2]
[369789077,1751724648390,-108.927341,0.0002,2]
[369789079,1751724648399,-571.6625391,0.0002,2]
[369789113,1751724648796,-460.0,0.00019178,2]
[369789115,1751724648807,-460.0,0.00019452,2]
[369789117,1751724648816,-460.0,0.00019726,2]
[369789119,1751724648826,-247.2474609,0.0002,2]
[369789121,1751724648836,-283.91283549,0.0002,2]
[369789123,1751724648845,-460.0,0.0002,2]
[369789125,1751724648855,-413.13970351,0.0002,2]
[369789127,1751724648866,-46.86029649,0.0002,2]
[369789129,1751724648877,-277.79537864,0.0002,2]
[369789958,1751724803635,156.0,0.00024789,120]
[369789959,1751724829026,191.0,0.00016438,3]
[369789961,1751725530162,257.960188,0.00013699,2]
[369790005,1751725611904,188.06808883,0.00024785,120]
[369790218,1751725831983,-167.43457693,0.00018142,2]
[369790219,1751725831995,-674.143056,0.00018154,2]
[369790220,1751725832006,-160.0,0.00018242,2]
[369790222,1751725832016,-160.0,0.00018242,2]
[369790224,1751725832026,-167.43457691,0.00018451,2]
[369790225,1751725832036,-155.0022029,0.000185,2]
[369790226,1751725832046,-167.43457691,0.00018759,2]
[369790227,1751725832055,-167.43457691,0.00019068,2]
[369790228,1751725832065,-11.55778108,0.00019074,2]
[369790229,1751725832078,-590.40961051,0.00019074,2]
[369790230,1751725832091,-598.03260841,0.00019074,2]
[369790231,1751725832100,-300.0,0.00019075,2]
[369790233,1751725832110,-300.0,0.00019075,2]
[369790234,1751725832120,-300.0,0.00019075,2]
[369790235,1751725832130,-300.0,0.00019075,2]
[369790236,1751725832140,-300.0,0.00019075,2]
[369790237,1751725832149,-913.19120389,0.00019076,2]
[369790238,1751725832162,-1200.0,0.00019076,2]
[369790239,1751725832174,-513.49190632,0.00019076,2]
[369790240,1751725832184,-234.9934279,0.00019078,2]
[369790241,1751725832194,-9203.04085348,0.00019078,2]
[369790299,1751725840209,-314.90990008,0.00018887,2]
[369790300,1751725840218,-165.0280112,0.00019078,2]
[369790301,1751725840230,-654.07580258,0.00019078,2]
[369790302,1751725840241,-1452.29218338,0.00019078,2]
[369790335,1751725843095,-2020.26992464,0.00019078,2]
[369790336,1751725843105,-621.878817,0.00019168,3]
[369790349,1751725845946,-1195.331183,0.00019168,3]
[369790350,1751725845955,-1473.72,0.00019168,3]
[369790351,1751725845964,-1473.72,0.00019168,3]
[369790352,1751725845973,-500.0,0.00019176,2]
[369790353,1751725845983,-519.997,0.00019176,2]
[369790354,1751725845992,-500.0,0.00019176,2]
[369790355,1751725846004,-500.0,0.00019176,2]
[369790356,1751725846013,-500.0,0.00019176,2]
[369790357,1751725846023,-500.0,0.00019176,2]
[369790358,1751725846033,-500.0,0.00019176,2]
[369790360,1751725846042,-500.0,0.00019176,2]
[369790362,1751725846063,-500.0,0.00019176,2]
[369790363,1751725846074,-500.0,0.00019176,2]
[369790364,1751725846084,-500.0,0.00019176,2]
[369790365,1751725846094,-270.55149452,0.00019176,2]
[369790366,1751725846105,-471.93885809,0.00019176,2]
[369790367,1751725846114,-224.34553056,0.00019176,2]
[369790368,1751725846124,-370.61411133,0.00019176,2]
[369790369,1751725846134,-500.0,0.00019176,2]
[369790370,1751725846144,-155.0,0.00019177,2]
[369790371,1751725846154,-500.0,0.00019177,2]
[369790372,1751725846164,-682.44758405,0.00019177,2]
[369790373,1751725846173,-356.78772591,0.00019177,2]
[369790374,1751725846183,-682.44758405,0.00019177,2]
[369790375,1751725846193,-258.7531337,0.00019177,2]
[369790376,1751725846203,-682.44758405,0.00019177,2]
[369790377,1751725846213,-682.44758405,0.00019177,2]
[369790378,1751725846223,-682.44758405,0.00019177,2]
[369790379,1751725846233,-682.44758405,0.00019177,2]
[369790380,1751725846243,-500.0,0.00019177,2]
[369790381,1751725846253,-682.44758405,0.00019177,2]
[369790382,1751725846263,-682.44758405,0.00019177,2]
[369790383,1751725846273,-500.0,0.00019177,2]
[369790384,1751725846283,-500.0,0.00019177,2]
[369790385,1751725846293,-500.0,0.00019177,2]
[369790386,1751725846304,-682.44758405,0.00019177,2]
[369790387,1751725846314,-682.44758405,0.00019177,2]
[369790388,1751725846324,-500.0,0.00019177,2]
[369790389,1751725846334,-682.44758405,0.00019177,2]
[369790390,1751725846343,-682.44758405,0.00019177,2]
[369790391,1751725846353,-682.44758405,0.00019177,2]
[369790392,1751725846363,-682.44758405,0.00019177,2]
[369790393,1751725846373,-682.44758405,0.00019177,2]
[369790394,1751725846383,-500.0,0.00019177,2]
[369790395,1751725846393,-682.44758405,0.00019177,2]
[369790396,1751725846403,-682.44758405,0.00019177,2]
[369790397,1751725846413,-682.44758405,0.00019177,2]
[369790398,1751725846423,-682.44758405,0.00019177,2]
[369790399,1751725846433,-682.44758405,0.00019177,2]
[369790400,1751725846442,-682.44758405,0.00019177,2]
[369790401,1751725846452,-1422.21759749,0.00019177,2]
[369790402,1751725846462,-1422.21759749,0.00019177,2]
[369790403,1751725846472,-1422.21759749,0.00019177,2]
[369790404,1751725846482,-1422.21759749,0.00019177,2]
[369790405,1751725846492,-1422.21759749,0.00019177,2]
[369790406,1751725846502,-1422.21759749,0.00019177,2]
[369790407,1751725846511,-1422.21759749,0.00019177,2]
[369790408,1751725846521,-1422.21759749,0.00019177,2]
[369790409,1751725846531,-1422.21759749,0.00019177,2]
[369790410,1751725846541,-460.0,0.00019178,2]
[369790411,1751725846551,-460.0,0.00019178,2]
[369790412,1751725846561,-460.0,0.00019178,2]
[369790413,1751725846571,-404.37876923,0.00019178,2]
[369790414,1751725846581,-460.0,0.00019178,2]
[369790415,1751725846590,-460.0,0.00019178,2]
[369790416,1751725846600,-460.0,0.00019178,2]
[369790417,1751725846609,-460.0,0.00019178,2]
[369790418,1751725846619,-460.0,0.00019178,2]
[369790419,1751725846629,-460.0,0.00019178,2]
[369790420,1751725846639,-460.0,0.00019178,2]
[369790421,1751725846663,-460.0,0.00019178,2]
[369790422,1751725846678,-460.0,0.00019178,2]
[369790423,1751725846691,-460.0,0.00019178,2]
[369790424,1751725846706,-460.0,0.00019178,2]
[369790425,1751725846719,-460.0,0.00019178,2]
[369790426,1751725846733,-460.0,0.00019178,2]
[369790427,1751725846745,-460.0,0.00019178,2]
[369790428,1751725846756,-345.33394174,0.00019178,2]
[369790429,1751725846771,-114.66605826,0.00019178,2]
[369790430,1751725846785,-460.0,0.00019178,2]
[369790431,1751725846798,-460.0,0.00019178,2]
[369790432,1751725846810,-561.6534796,0.00019178,2]
[369790433,1751725846822,-391.88058109,0.00019178,2]
[369790588,1751726511519,257.476987,0.00013699,2]
[369790628,1751727032132,-300.0,0.00018268,2]
[369790629,1751727032142,-736.71215013,0.00018268,2]
[369790630,1751727032236,-463.28784987,0.00018268,2]
[369790631,1751727032246,-24900.0,0.00018269,2]
[369790632,1751727032256,-2219.32478793,0.000189,2]
[369790633,1751727032266,-449.30541803,0.00019068,2]
[369790634,1751727032278,-291.939,0.00019078,2]
[369790635,1751727032287,-438.93182612,0.00019078,2]
[369790636,1751727032297,-411.13912894,0.00019078,2]
[369790637,1751727032306,-1087.16704153,0.00019078,2]
[369790638,1751727032316,-2287.3,0.00019168,3]
[369790639,1751727032326,-509.05024139,0.00019173,2]
[369790640,1751727032335,-500.0,0.00019173,2]
[369790641,1751727032345,-258.65295974,0.00019173,2]
[369790642,1751727032355,-478.18066296,0.00019173,2]
[369790643,1751727032364,-500.0,0.00019173,2]
[369790644,1751727032374,-500.0,0.00019173,2]
[369790645,1751727032384,-500.0,0.00019173,2]
[369790646,1751727032393,-500.0,0.00019173,2]
[369790647,1751727032402,-357.02851097,0.00019177,2]
[369790648,1751727032412,-274.65987312,0.00019177,2]
[369790649,1751727032421,-252.28349939,0.00019177,2]
[369790650,1751727032431,-9868.83179274,0.00019178,2]
[369790651,1751727032439,-3483.65867673,0.00019178,2]
[369790652,1751727032449,-333.63853218,0.00019178,2]
[369790653,1751727032459,-460.0,0.00019178,2]
[369790654,1751727032468,-460.0,0.00019178,2]
[369790655,1751727032478,-460.0,0.00019178,2]
[369790656,1751727032488,-460.0,0.00019178,2]
[369790657,1751727032497,-460.0,0.00019178,2]
[369790658,1751727032507,-148.17214168,0.00019178,2]
[369790693,1751727038164,-90.47510091,0.00019178,2]
[369790695,1751727038174,-373.46681737,0.00019178,2]
[369790697,1751727038185,-460.0,0.00019178,2]
[369790699,1751727038195,-460.0,0.00019178,2]
[369790701,1751727038205,-460.0,0.00019178,2]
[369790703,1751727038215,-460.0,0.00019178,2]
[369790705,1751727038224,-460.0,0.00019178,2]
[369790707,1751727038234,-460.0,0.00019178,2]
[369790709,1751727038244,-534.25,0.00019178,2]
[369790711,1751727038254,-458.74526462,0.00019178,2]
[369790716,1751727038294,-1.25473538,0.00019178,2]
[369790717,1751727038304,-286.86526462,0.00019178,2]
[369790718,1751727038332,-173.13473538,0.00019178,2]
[369790719,1751727038342,-460.0,0.00019178,2]
[369790720,1751727038352,-460.0,0.00019178,2]
[369790721,1751727038362,-460.0,0.00019178,2]
[369790722,1751727038372,-460.0,0.00019178,2]
[369790723,1751727038382,-460.0,0.00019178,2]
[369790724,1751727038391,-460.0,0.00019178,2]
[369790726,1751727038401,-460.0,0.00019178,2]
[369790728,1751727038411,-465.79,0.00019178,2]
[369790729,1751727038420,-460.0,0.00019178,2]
[369790731,1751727038431,-460.0,0.00019178,2]
[369790733,1751727038440,-506.22,0.00019178,2]
[369790734,1751727038450,-460.0,0.00019178,2]
[369790735,1751727038460,-373.0790775,0.00019178,2]
[369790736,1751727038470,-460.0,0.00019178,2]
[369790737,1751727038480,-460.0,0.00019178,2]
[369790738,1751727038490,-460.0,0.00019178,2]
[369790739,1751727038500,-460.0,0.00019178,2]
[369790740,1751727038509,-460.0,0.00019178,2]
[369790741,1751727038520,-460.0,0.00019178,2]
[369790742,1751727038530,-487.75,0.00019178,2]
[369790743,1751727038540,-460.0,0.00019178,2]
[369790744,1751727038551,-500.0,0.00019178,2]
[369790745,1751727038560,-460.0,0.00019178,2]
[369790746,1751727038570,-292.04569245,0.00019178,2]
[369790747,1751727038580,-460.0,0.00019178,2]
[369790749,1751727038590,-460.0,0.00019178,2]
[369790751,1751727038599,-460.0,0.00019178,2]
[369790753,1751727038610,-460.0,0.00019178,2]
[369790755,1751727038619,-460.0,0.00019178,2]
[369790757,1751727038629,-460.0,0.00019178,2]
[369790759,1751727038639,-460.0,0.00019178,2]
[369790761,1751727038649,-460.0,0.00019178,2]
[369790763,1751727038659,-460.0,0.00019178,2]
[369790765,1751727038669,-460.0,0.00019178,2]
[369790767,1751727038678,-460.0,0.00019178,2]
[369790770,1751727038688,-460.0,0.00019178,2]
[369790772,1751727038698,-460.0,0.00019178,2]
[369790774,1751727038707,-262.58253485,0.00019178,2]
[369790776,1751727038717,-168.21754223,0.00019178,2]
[369790778,1751727038729,-460.0,0.00019178,2]
[369790780,1751727038740,-460.0,0.00019178,2]
[369790782,1751727038749,-460.0,0.00019178,2]
[369790784,1751727038759,-460.0,0.00019178,2]
[369790786,1751727038768,-460.0,0.00019178,2]
[369790788,1751727038779,-460.0,0.00019178,2]
[369790790,1751727038788,-460.0,0.00019178,2]
[369790792,1751727038798,-460.0,0.00019178,2]
[369790794,1751727038808,-460.0,0.00019178,2]
[369790796,1751727038818,-460.0,0.00019178,2]
[369790798,1751727038828,-460.0,0.00019178,2]
[369790800,1751727038839,-460.0,0.00019178,2]
[369790802,1751727038849,-460.0,0.00019178,2]
[369790804,1751727038859,-507.81,0.00019178,2]
[369790806,1751727038869,-460.0,0.00019178,2]
[369790808,1751727038879,-460.0,0.00019178,2]
[369790811,1751727038890,-460.0,0.00019178,2]
[369790813,1751727038900,-460.0,0.00019178,2]
[369790815,1751727038910,-460.0,0.00019178,2]
[369790817,1751727038920,-460.0,0.00019178,2]
[369790819,1751727038930,-460.0,0.00019178,2]
[369790821,1751727038941,-460.0,0.00019178,2]
[369790823,1751727038951,-460.0,0.00019178,2]
[369790825,1751727038962,-452.34029289,0.00019178,2]
[369790827,1751727038972,-460.0,0.00019178,2]
[369790829,1751727038983,-460.0,0.00019178,2]
[369790831,1751727038993,-460.0,0.00019178,2]
[369790833,1751727039003,-460.0,0.00019178,2]
[369790835,1751727039013,-460.0,0.00019178,2]
[369790838,1751727039023,-460.0,0.00019178,2]
[369790840,1751727039034,-460.0,0.00019178,2]
[369790842,1751727039046,-460.0,0.00019178,2]
[369790844,1751727039056,-460.0,0.00019178,2]
[369790846,1751727039066,-460.0,0.00019178,2]
[369790848,1751727039076,-460.0,0.00019178,2]
[369790850,1751727039087,-460.0,0.00019178,2]
[369790852,1751727039097,-460.0,0.00019178,2]
[369790854,1751727039107,-460.0,0.00019178,2]
[369790857,1751727039119,-482.35,0.00019178,2]
[369790859,1751727039129,-460.0,0.00019178,2]
[369790861,1751727039139,-460.0,0.00019178,2]
[369790863,1751727039149,-413.91104567,0.00019178,2]
[369790865,1751727039159,-460.0,0.00019178,2]
[369790867,1751727039170,-460.0,0.00019178,2]
[369790869,1751727039180,-460.0,0.00019178,2]
[369790871,1751727039191,-460.0,0.00019178,2]
[369790873,1751727039201,-460.0,0.00019178,2]
[369790875,1751727039211,-460.0,0.00019178,2]
[369790877,1751727039222,-460.0,0.00019178,2]
[369790879,1751727039232,-467.6,0.00019178,2]
[369790881,1751727039243,-460.0,0.00019178,2]
[369790884,1751727039253,-460.0,0.00019178,2]
[369790886,1751727039263,-460.0,0.00019178,2]
[369790888,1751727039275,-460.0,0.00019178,2]
[369790890,1751727039285,-460.0,0.00019178,2]
[369790892,1751727039297,-460.0,0.00019178,2]
[369790894,1751727039306,-460.0,0.00019178,2]
[369790896,1751727039316,-460.0,0.00019178,2]
[369790898,1751727039326,-460.0,0.00019178,2]
[369790900,1751727039336,-338.67131131,0.00019178,2]
[369790903,1751727039346,-460.69967279,0.00019178,2]
[369790905,1751727039356,-460.0,0.00019178,2]
[369790907,1751727039365,-254.894517,0.00019178,2]
[369790909,1751727039376,-460.0,0.00019178,2]
[369790911,1751727039387,-460.0,0.00019178,2]
[369790913,1751727039398,-460.0,0.00019178,2]
[369790915,1751727039408,-460.0,0.00019178,2]
[369790917,1751727039418,-460.0,0.00019178,2]
[369790919,1751727039429,-460.0,0.00019178,2]
[369790921,1751727039439,-460.0,0.00019178,2]
[369790924,1751727039450,-460.0,0.00019178,2]
[369790926,1751727039462,-460.0,0.00019178,2]
[369790949,1751727039672,-460.0,0.00019178,2]
[369790951,1751727039683,-460.0,0.00019178,2]
[369790953,1751727039692,-460.0,0.00019178,2]
[369790955,1751727039702,-397.64294546,0.00019178,2]
[369790957,1751727039711,-460.0,0.00019178,2]
[369790959,1751727039726,-460.0,0.00019178,2]
[369790961,1751727039736,-461.34576951,0.00019178,2]
[369790963,1751727039745,-460.0,0.00019178,2]
[369790965,1751727039755,-460.0,0.00019178,2]
[369790967,1751727039765,-460.0,0.00019178,2]
[369790969,1751727039775,-460.0,0.00019178,2]
[369790971,1751727039785,-460.0,0.00019178,2]
[369790973,1751727039794,-460.0,0.00019178,2]
[369790975,1751727039805,-460.0,0.00019178,2]
[369790978,1751727039815,-460.0,0.00019178,2]
[369790980,1751727039824,-460.0,0.00019178,2]
[369790982,1751727039833,-460.0,0.00019178,2]
[369790984,1751727039843,-460.0,0.00019178,2]
[369790986,1751727039852,-460.0,0.00019178,2]
[369790988,1751727039863,-460.78050406,0.00019178,2]
[369790990,1751727039872,-460.0,0.00019178,2]
[369790992,1751727039881,-460.0,0.00019178,2]
[369790994,1751727039891,-460.0,0.00019178,2]
[369790996,1751727039901,-937.58,0.00019178,2]
[369790998,1751727039911,-460.0,0.00019178,2]
[369791000,1751727039921,-460.0,0.00019178,2]
[369791002,1751727039930,-460.0,0.00019178,2]
[369791004,1751727039940,-866.13,0.00019178,2]
[369791006,1751727039949,-460.0,0.00019178,2]
[369791008,1751727039959,-460.0,0.00019178,2]
[369791010,1751727039968,-460.0,0.00019178,2]
[369791012,1751727039978,-460.0,0.00019178,2]
[369791014,1751727039987,-460.0,0.00019178,2]
[369791016,1751727039997,-460.0,0.00019178,2]
[369791018,1751727040006,-460.0,0.00019178,2]
[369791020,1751727040015,-460.0,0.00019178,2]
[369791023,1751727040025,-460.0,0.00019178,2]
[369791024,1751727040035,-460.0,0.00019178,2]
[369791026,1751727040045,-1035.55,0.00019178,2]
[369791028,1751727040055,-460.0,0.00019178,2]
[369791031,1751727040065,-460.0,0.00019178,2]
[369791032,1751727040074,-460.0,0.00019178,2]
[369791035,1751727040084,-460.0,0.00019178,2]
[369791037,1751727040094,-460.0,0.00019178,2]
[369791039,1751727040103,-460.0,0.00019178,2]
[369791040,1751727040113,-493.17,0.00019178,2]
[369791042,1751727040124,-460.0,0.00019178,2]
[369791044,1751727040133,-217.98688738,0.00019178,2]
[369791046,1751727040143,-676.16,0.00019178,2]
[369791048,1751727040153,-460.0,0.00019178,2]
[369791050,1751727040162,-460.0,0.00019178,2]
[369791052,1751727040172,-460.0,0.00019178,2]
[369791054,1751727040182,-460.0,0.00019178,2]
[369791056,1751727040191,-460.0,0.00019178,2]
[369791058,1751727040200,-460.0,0.00019178,2]
[369791060,1751727040209,-460.0,0.00019178,2]
[369791062,1751727040219,-460.0,0.00019178,2]
[369791065,1751727040232,-460.0,0.00019178,2]
[369791067,1751727040242,-460.0,0.00019178,2]
[369791068,1751727040252,-500.0,0.00019178,2]
[369791070,1751727040261,-460.0,0.00019178,2]
[369791072,1751727040271,-207.51568586,0.00019178,2]
[369791075,1751727040283,-460.0,0.00019178,2]
[369791076,1751727040293,-460.0,0.00019178,2]
[369791079,1751727040303,-533.03,0.00019178,2]
[369791081,1751727040314,-460.0,0.00019178,2]
[369791083,1751727040323,-460.0,0.00019178,2]
[369791085,1751727040333,-460.0,0.00019178,2]
[369791087,1751727040343,-460.0,0.00019178,2]
[369791089,1751727040352,-461.14230179,0.00019178,2]
[369791090,1751727040362,-460.0,0.00019178,2]
[369791093,1751727040373,-460.0,0.00019178,2]
[369791095,1751727040384,-460.0,0.00019178,2]
[369791097,1751727040394,-460.0,0.00019178,2]
[369791099,1751727040404,-460.0,0.00019178,2]
[369791100,1751727040414,-460.0,0.00019178,2]
[369791102,1751727040424,-460.0,0.00019178,2]
[369791104,1751727040434,-460.0,0.00019178,2]
[369791106,1751727040444,-460.0,0.00019178,2]
[369791108,1751727040453,-379.7241206,0.00019178,2]
[369791110,1751727040462,-460.0,0.00019178,2]
[369791112,1751727040472,-460.0,0.00019178,2]
[369791114,1751727040481,-460.0,0.00019178,2]
[369791116,1751727040490,-460.0,0.00019178,2]
[369791118,1751727040500,-460.0,0.00019178,2]
[369791120,1751727040509,-460.0,0.00019178,2]
[369791122,1751727040519,-460.0,0.00019178,2]
[369791124,1751727040528,-460.0,0.00019178,2]
[369791126,1751727040538,-460.0,0.00019178,2]
[369791128,1751727040547,-460.0,0.00019178,2]
[369791130,1751727040558,-460.0,0.00019178,2]
[369791132,1751727040567,-460.0,0.00019178,2]
[369791134,1751727040576,-441.36699694,0.00019178,2]
[369791136,1751727040587,-460.0,0.00019178,2]
[369791138,1751727040597,-460.0,0.00019178,2]
[369791140,1751727040607,-460.0,0.00019178,2]
[369791142,1751727040616,-460.0,0.00019178,2]
[369791144,1751727040625,-460.0,0.00019178,2]
[369791146,1751727040634,-460.0,0.00019178,2]
[369791148,1751727040644,-460.0,0.00019178,2]
[369791150,1751727040653,-460.0,0.00019178,2]
[369791152,1751727040662,-460.0,0.00019178,2]
[369791154,1751727040672,-460.0,0.00019178,2]
[369791156,1751727040681,-460.0,0.00019178,2]
[369791158,1751727040690,-460.0,0.00019178,2]
[369791160,1751727040701,-562.21,0.00019178,2]
[369791162,1751727040711,-1272.19,0.00019178,2]
[369791164,1751727040724,-460.0,0.00019178,2]
[369791166,1751727040736,-460.0,0.00019178,2]
[369791168,1751727040746,-460.0,0.00019178,2]
[369791170,1751727040755,-467.33,0.00019178,2]
[369791172,1751727040765,-612.31,0.00019178,2]
[369791174,1751727040775,-460.0,0.00019178,2]
[369791176,1751727040785,-5915.88,0.00019178,2]
[369791178,1751727040794,-460.0,0.00019178,2]
[369791180,1751727040803,-460.0,0.00019178,2]
[369791182,1751727040813,-460.0,0.00019178,2]
[369791184,1751727040822,-460.0,0.00019178,2]
[369791186,1751727040832,-460.0,0.00019178,2]
[369791189,1751727040841,-256.76964072,0.00019178,2]
[369791190,1751727040850,-875.15,0.00019178,2]
[369791193,1751727040860,-460.0,0.00019178,2]
[369791194,1751727040869,-1739.56,0.00019178,2]
[369791197,1751727040878,-648.4,0.00019178,2]
[369791198,1751727040888,-460.0,0.00019178,2]
[369791200,1751727040897,-460.0,0.00019178,2]
[369791202,1751727040907,-551.61345267,0.00019178,2]
[369791205,1751727040917,-4392.2,0.00019178,2]
[369791207,1751727040926,-460.0,0.00019178,2]
[369791209,1751727040936,-4507.97,0.00019178,2]
[369791211,1751727040946,-460.0,0.00019178,2]
[369791213,1751727040955,-460.0,0.00019178,2]
[369791215,1751727040965,-460.0,0.00019178,2]
[369791217,1751727040974,-151.0,0.00019178,2]
[369791219,1751727040983,-460.0,0.00019178,2]
[369791220,1751727040993,-470.15,0.00019178,2]
[369791222,1751727041002,-151.0,0.00019178,2]
[369791224,1751727041012,-2523.94,0.00019178,2]
[369791227,1751727041021,-460.0,0.00019178,2]
[369791229,1751727041031,-460.0,0.00019178,2]
[369791231,1751727041040,-2386.63,0.00019178,2]
[369791232,1751727041049,-151.0,0.00019178,2]
[369791234,1751727041059,-460.0,0.00019178,2]
[369791237,1751727041068,-460.0,0.00019178,2]
[369791238,1751727041078,-460.0,0.00019178,2]
[369791240,1751727041087,-460.0,0.00019178,2]
[369791242,1751727041097,-460.0,0.00019178,2]
[369791245,1751727041106,-1182.54,0.00019178,2]
[369791246,1751727041116,-151.0,0.00019178,2]
[369791248,1751727041126,-500.0,0.00019178,2]
[369791250,1751727041136,-460.0,0.00019178,2]
[369791252,1751727041145,-460.0,0.00019178,2]
[369791254,1751727041155,-151.0,0.00019178,2]
[369791256,1751727041164,-460.0,0.00019178,2]
[369791258,1751727041173,-460.0,0.00019178,2]
[369791260,1751727041183,-460.0,0.00019178,2]
[369791263,1751727041192,-460.0,0.00019178,2]
[369791265,1751727041201,-151.0,0.00019178,2]
[369791267,1751727041212,-460.0,0.00019178,2]
[369791269,1751727041221,-220.37742404,0.00019178,2]
[369791271,1751727041231,-633.25,0.00019178,2]
[369791272,1751727041239,-266.52760523,0.00019178,2]
[369791275,1751727041249,-460.0,0.00019178,2]
[369791277,1751727041258,-460.0,0.00019178,2]
[369791278,1751727041268,-761.41,0.00019178,2]
[369791280,1751727041277,-989.53,0.00019178,2]
[369791283,1751727041287,-460.0,0.00019178,2]
[369791285,1751727041296,-1021.66,0.00019178,2]
[369791286,1751727041306,-460.0,0.00019178,2]
[369791288,1751727041315,-601.96,0.00019178,2]
[369791290,1751727041325,-468.8,0.00019178,2]
[369791292,1751727041334,-460.0,0.00019178,2]
[369791294,1751727041344,-460.0,0.00019178,2]
[369791297,1751727041354,-460.0,0.00019178,2]
[369791299,1751727041365,-460.0,0.00019178,2]
[369791300,1751727041374,-462.3,0.00019178,2]
[369791302,1751727041383,-460.0,0.00019178,2]
[369791305,1751727041393,-460.0,0.00019178,2]
[369791307,1751727041403,-460.0,0.00019178,2]
[369791308,1751727041412,-460.0,0.00019178,2]
[369791310,1751727041422,-460.0,0.00019178,2]
[369791313,1751727041431,-667.06,0.00019178,2]
[369791315,1751727041441,-460.0,0.00019178,2]
[369791317,1751727041451,-460.0,0.00019178,2]
[369791319,1751727041460,-460.0,0.00019178,2]
[369791321,1751727041469,-1686.02,0.00019178,2]
[369791322,1751727041478,-3077.38,0.00019178,2]
[369791324,1751727041487,-460.0,0.00019178,2]
[369791326,1751727041496,-460.0,0.00019178,2]
[369791328,1751727041506,-460.0,0.00019178,2]
[369791330,1751727041515,-460.0,0.00019178,2]
[369791332,1751727041525,-460.0,0.00019178,2]
[369791334,1751727041534,-460.0,0.00019178,2]
[369791336,1751727041544,-2346.72,0.00019178,2]
[369791338,1751727041553,-460.0,0.00019178,2]
[369791340,1751727041563,-460.0,0.00019178,2]
[369791342,1751727041572,-460.0,0.00019178,2]
[369791344,1751727041582,-3798.5,0.00019178,2]
[369791346,1751727041591,-460.0,0.00019178,2]
[369791348,1751727041601,-460.0,0.00019178,2]
[369791350,1751727041610,-460.0,0.00019178,2]
[369791352,1751727041619,-460.0,0.00019178,2]
[369791354,1751727041628,-460.0,0.00019178,2]
[369791356,1751727041637,-460.0,0.00019178,2]
[369791358,1751727041647,-531.06,0.00019178,2]
[369791360,1751727041656,-460.0,0.00019178,2]
[369791362,1751727041665,-460.0,0.00019178,2]
[369791365,1751727041675,-460.0,0.00019178,2]
[369791367,1751727041685,-460.0,0.00019178,2]